[Event "Live Chess"]
[Site "Chess.com"]
[Date "2023.05.20"]
[Round "-"]
[White "SirEntrails"]
[Black "omisoc"]
[Result "0-1"]
[WhiteElo "537"]
[BlackElo "2198"]
[TimeControl "300"]
[EndTime "12:30:33 PDT"]
[Termination "omisoc won by checkmate"]

1. e4 {[%clk 0:04:54.5]} 1... b6 {[%clk 0:04:55.6]} 2. Nf3 {[%clk 0:04:50.4]}
2... Bb7 {[%clk 0:04:54.1]} 3. Bd3 {[%clk 0:04:42.5]} 3... e6 {[%clk 0:04:52.2]}
4. Nc3 {[%clk 0:04:41.3]} 4... g6 {[%clk 0:04:51.1]} 5. Bc4 {[%clk 0:04:40.2]}
5... Bg7 {[%clk 0:04:47]} 6. d3 {[%clk 0:04:37.3]} 6... Ne7 {[%clk 0:04:46]} 7.
Bg5 {[%clk 0:04:34.1]} 7... h6 {[%clk 0:04:44.1]} 8. Bxe7 {[%clk 0:04:32.1]}
8... Qxe7 {[%clk 0:04:42.2]} 9. O-O {[%clk 0:04:23.3]} 9... O-O {[%clk
0:04:40.2]} 10. d4 {[%clk 0:04:11.5]} 10... d6 {[%clk 0:04:24.9]} 11. e5 {[%clk
0:04:05.2]} 11... Nd7 {[%clk 0:04:20.8]} 12. exd6 {[%clk 0:04:01.8]} 12... cxd6
{[%clk 0:04:19.1]} 13. Nb5 {[%clk 0:03:54]} 13... Rfc8 {[%clk 0:04:07.6]} 14. b3
{[%clk 0:03:48.4]} 14... a6 {[%clk 0:04:01]} 15. Nc3 {[%clk 0:03:42.8]} 15... d5
{[%clk 0:03:55.7]} 16. Bd3 {[%clk 0:03:36.9]} 16... Rxc3 {[%clk 0:03:53.1]} 17.
Qe2 {[%clk 0:03:27.4]} 17... Rac8 {[%clk 0:03:38.3]} 18. Nh4 {[%clk 0:03:18.4]}
18... Qxh4 {[%clk 0:03:33.8]} 19. g3 {[%clk 0:03:14.4]} 19... Qxd4 {[%clk
0:03:30.4]} 20. Rae1 {[%clk 0:03:04.5]} 20... b5 {[%clk 0:03:25.2]} 21. h4
{[%clk 0:03:01.3]} 21... Ne5 {[%clk 0:03:23.8]} 22. a4 {[%clk 0:02:36.6]} 22...
Nxd3 {[%clk 0:03:21]} 23. cxd3 {[%clk 0:02:31.7]} 23... Rxd3 {[%clk 0:03:19.3]}
24. axb5 {[%clk 0:02:28.3]} 24... axb5 {[%clk 0:03:19.2]} 25. b4 {[%clk
0:02:27]} 25... Rxg3+ {[%clk 0:03:16.8]} 26. Kh2 {[%clk 0:02:17.8]} 26... Qxh4#
{[%clk 0:03:16.7]} 0-1

[Event "Live Chess"]
[Site "Chess.com"]
[Date "2023.05.20"]
[Round "-"]
[White "KeithArkell"]
[Black "djw60"]
[Result "1-0"]
[WhiteElo "2615"]
[BlackElo "2111"]
[TimeControl "300"]
[EndTime "12:30:37 PDT"]
[Termination "KeithArkell won by resignation"]

1. d4 {[%clk 0:04:53.3]} 1... Nf6 {[%clk 0:04:58.2]} 2. Nf3 {[%clk 0:04:51.9]}
2... e6 {[%clk 0:04:56.6]} 3. c4 {[%clk 0:04:51.1]} 3... c5 {[%clk 0:04:55.8]}
4. d5 {[%clk 0:04:50]} 4... d6 {[%clk 0:04:55.1]} 5. Nc3 {[%clk 0:04:48.2]} 5...
exd5 {[%clk 0:04:54.2]} 6. cxd5 {[%clk 0:04:47.7]} 6... a6 {[%clk 0:04:52.3]} 7.
a4 {[%clk 0:04:46.4]} 7... g6 {[%clk 0:04:51.3]} 8. Nd2 {[%clk 0:04:45.7]} 8...
Bg7 {[%clk 0:04:49.5]} 9. Nc4 {[%clk 0:04:45]} 9... O-O {[%clk 0:04:48.5]} 10.
Bf4 {[%clk 0:04:44.3]} 10... Ne8 {[%clk 0:04:44.2]} 11. g3 {[%clk 0:04:42.4]}
11... Qe7 {[%clk 0:04:33.5]} 12. Bg2 {[%clk 0:04:40.1]} 12... Nd7 {[%clk
0:04:32.4]} 13. O-O {[%clk 0:04:36.6]} 13... Ne5 {[%clk 0:04:29.9]} 14. Bxe5
{[%clk 0:04:35]} 14... Bxe5 {[%clk 0:04:27.9]} 15. Nxe5 {[%clk 0:04:33.4]} 15...
Qxe5 {[%clk 0:04:26.4]} 16. a5 {[%clk 0:04:32.9]} 16... Bd7 {[%clk 0:04:21.8]}
17. e4 {[%clk 0:04:29.4]} 17... Nc7 {[%clk 0:04:18]} 18. Re1 {[%clk 0:04:27.7]}
18... Nb5 {[%clk 0:04:07.8]} 19. Na4 {[%clk 0:04:22.5]} 19... Rae8 {[%clk
0:03:56.6]} 20. Nb6 {[%clk 0:04:20]} 20... Bc8 {[%clk 0:03:51.4]} 21. Nc4 {[%clk
0:04:18.9]} 21... Qe7 {[%clk 0:03:41.5]} 22. e5 {[%clk 0:03:49.8]} 22... Qd8
{[%clk 0:03:12.9]} 23. Qd2 {[%clk 0:03:20.2]} 23... dxe5 {[%clk 0:02:54]} 24.
Rxe5 {[%clk 0:03:13.5]} 24... Rxe5 {[%clk 0:02:48.9]} 25. Nxe5 {[%clk
0:03:13.4]} 25... Nd4 {[%clk 0:02:42.1]} 26. Ra3 {[%clk 0:03:06.1]} 26... Re8
{[%clk 0:02:31.7]} 27. Re3 {[%clk 0:02:35.9]} 27... f6 {[%clk 0:02:03.7]} 28.
Nc4 {[%clk 0:02:21.8]} 28... Bg4 {[%clk 0:01:53.3]} 29. Rxe8+ {[%clk 0:01:54.3]}
29... Qxe8 {[%clk 0:01:51.7]} 30. d6 {[%clk 0:01:34.4]} 30... Bf3 {[%clk
0:01:38.8]} 31. Qe3 {[%clk 0:01:20.6]} 31... Qc6 {[%clk 0:01:17.1]} 32. d7
{[%clk 0:01:08.7]} 32... Qxd7 {[%clk 0:00:40]} 33. Bxf3 {[%clk 0:01:06.5]} 33...
Nxf3+ {[%clk 0:00:38.2]} 34. Qxf3 {[%clk 0:01:04.5]} 1-0

[Event "Live Chess"]
[Site "Chess.com"]
[Date "2023.05.20"]
[Round "-"]
[White "gmnorfolk"]
[Black "viktorskliarov"]
[Result "0-1"]
[WhiteElo "2053"]
[BlackElo "2651"]
[TimeControl "300"]
[EndTime "12:30:44 PDT"]
[Termination "viktorskliarov won by resignation"]

1. d4 {[%clk 0:04:58.1]} 1... Nf6 {[%clk 0:04:53.8]} 2. c4 {[%clk 0:04:56.5]}
2... e6 {[%clk 0:04:52.5]} 3. Nf3 {[%clk 0:04:43]} 3... b6 {[%clk 0:04:50.5]} 4.
g3 {[%clk 0:04:41.2]} 4... Bb7 {[%clk 0:04:47.4]} 5. Bg2 {[%clk 0:04:39.4]} 5...
Be7 {[%clk 0:04:46.4]} 6. Nc3 {[%clk 0:04:37.6]} 6... O-O {[%clk 0:04:44.5]} 7.
O-O {[%clk 0:04:33.9]} 7... Ne4 {[%clk 0:04:43.6]} 8. Bd2 {[%clk 0:04:30.7]}
8... Nxc3 {[%clk 0:04:40.1]} 9. Bxc3 {[%clk 0:04:28.2]} 9... d6 {[%clk
0:04:39.3]} 10. Rc1 {[%clk 0:04:25.7]} 10... Nd7 {[%clk 0:04:35]} 11. Re1 {[%clk
0:04:20]} 11... f5 {[%clk 0:04:06.8]} 12. Nd2 {[%clk 0:04:10.1]} 12... Bxg2
{[%clk 0:04:00.2]} 13. Kxg2 {[%clk 0:04:10]} 13... f4 {[%clk 0:03:53.6]} 14. e3
{[%clk 0:03:51.7]} 14... fxg3 {[%clk 0:03:50.2]} 15. hxg3 {[%clk 0:03:46.6]}
15... Qe8 {[%clk 0:03:41.4]} 16. Qg4 {[%clk 0:03:36.5]} 16... Qf7 {[%clk
0:03:35.2]} 17. f4 {[%clk 0:03:35.4]} 17... Nf6 {[%clk 0:03:21]} 18. Qf3 {[%clk
0:03:28.1]} 18... c5 {[%clk 0:03:11.9]} 19. dxc5 {[%clk 0:03:03.2]} 19... bxc5
{[%clk 0:03:01.3]} 20. Rh1 {[%clk 0:02:58]} 20... Qg6 {[%clk 0:02:46]} 21. Rh3
{[%clk 0:02:26.6]} 21... h6 {[%clk 0:02:10.8]} 22. b3 {[%clk 0:02:11.3]} 22...
a5 {[%clk 0:02:07.7]} 23. Bxf6 {[%clk 0:01:46.6]} 23... Bxf6 {[%clk 0:02:04.4]}
24. Ne4 {[%clk 0:01:39.7]} 24... Be7 {[%clk 0:01:59.5]} 25. Rd1 {[%clk
0:01:36.2]} 25... Rad8 {[%clk 0:01:55.8]} 26. Qh5 {[%clk 0:01:26.8]} 26... Qxe4+
{[%clk 0:01:52.8]} 0-1

[Event "Live Chess"]
[Site "Chess.com"]
[Date "2023.05.20"]
[Round "-"]
[White "LodeshChess"]
[Black "Ian-Morley"]
[Result "0-1"]
[WhiteElo "1000"]
[BlackElo "1003"]
[TimeControl "300"]
[EndTime "12:30:48 PDT"]
[Termination "Ian-Morley won by resignation"]

1. e4 {[%clk 0:04:56.6]} 1... d5 {[%clk 0:04:55.9]} 2. exd5 {[%clk 0:04:53.9]}
2... Qxd5 {[%clk 0:04:51.7]} 3. Nc3 {[%clk 0:04:53.3]} 3... Qd8 {[%clk
0:04:47.4]} 4. Nf3 {[%clk 0:04:51.6]} 4... Nf6 {[%clk 0:04:43.4]} 5. d4 {[%clk
0:04:51]} 5... e6 {[%clk 0:04:41.5]} 6. Bd3 {[%clk 0:04:45.4]} 6... Bb4 {[%clk
0:04:35.8]} 7. Bd2 {[%clk 0:04:40.4]} 7... Bxc3 {[%clk 0:04:31.1]} 8. Bxc3
{[%clk 0:04:38.5]} 8... O-O {[%clk 0:04:29.9]} 9. Bd2 {[%clk 0:04:37.1]} 9... c6
{[%clk 0:04:28.8]} 10. c3 {[%clk 0:04:35.9]} 10... Nbd7 {[%clk 0:04:28]} 11. O-O
{[%clk 0:04:35.3]} 11... Qe7 {[%clk 0:04:25]} 12. Re1 {[%clk 0:04:20.7]} 12...
Nd5 {[%clk 0:04:17.9]} 13. Bxh7+ {[%clk 0:04:14.3]} 13... Kxh7 {[%clk
0:04:12.4]} 14. Ng5+ {[%clk 0:04:13.9]} 14... Kg8 {[%clk 0:04:00.6]} 15. Qh5
{[%clk 0:04:12]} 15... N5f6 {[%clk 0:03:59.2]} 16. Nf3 {[%clk 0:04:04.1]} 16...
Nxh5 {[%clk 0:03:56.9]} 17. Bg5 {[%clk 0:04:01.4]} 17... Qd6 {[%clk 0:03:50.7]}
0-1

[Event "Live Chess"]
[Site "Chess.com"]
[Date "2023.05.20"]
[Round "-"]
[White "mikeybaby1986"]
[Black "thrithik"]
[Result "1-0"]
[WhiteElo "1288"]
[BlackElo "380"]
[TimeControl "300"]
[EndTime "12:30:49 PDT"]
[Termination "mikeybaby1986 won by checkmate"]

1. e4 {[%clk 0:04:51.5]} 1... d6 {[%clk 0:04:57.4]} 2. Nf3 {[%clk 0:04:50.2]}
2... e6 {[%clk 0:04:54.9]} 3. Bb5+ {[%clk 0:04:48.6]} 3... c6 {[%clk 0:04:54.5]}
4. Bc4 {[%clk 0:04:46.8]} 4... d5 {[%clk 0:04:52.5]} 5. exd5 {[%clk 0:04:45.8]}
5... exd5 {[%clk 0:04:49.2]} 6. Bb3 {[%clk 0:04:41.2]} 6... Qe7+ {[%clk
0:04:44.5]} 7. Qe2 {[%clk 0:04:32.4]} 7... Bg4 {[%clk 0:04:41.8]} 8. O-O {[%clk
0:04:24.5]} 8... Bxf3 {[%clk 0:04:35.4]} 9. Qxf3 {[%clk 0:04:23.2]} 9... Qc5
{[%clk 0:04:26]} 10. Re1+ {[%clk 0:04:19.9]} 10... Be7 {[%clk 0:04:21.9]} 11.
Nc3 {[%clk 0:04:13.2]} 11... Nf6 {[%clk 0:04:14.4]} 12. d3 {[%clk 0:04:09.5]}
12... Qa5 {[%clk 0:04:07.6]} 13. Bg5 {[%clk 0:04:04.5]} 13... Ng8 {[%clk
0:04:02.1]} 14. Bxe7 {[%clk 0:03:57.5]} 14... Nxe7 {[%clk 0:03:58.4]} 15. Qe2
{[%clk 0:03:54.4]} 15... Nd7 {[%clk 0:03:54.3]} 16. Qxe7# {[%clk 0:03:52.5]} 1-0

[Event "Live Chess"]
[Site "Chess.com"]
[Date "2023.05.20"]
[Round "-"]
[White "EdenHazard8"]
[Black "Ninifu"]
[Result "0-1"]
[WhiteElo "2089"]
[BlackElo "2015"]
[TimeControl "300"]
[EndTime "12:30:52 PDT"]
[Termination "Ninifu won by checkmate"]

1. e4 {[%clk 0:04:59.2]} 1... d5 {[%clk 0:04:57.5]} 2. exd5 {[%clk 0:04:58.1]}
2... Nf6 {[%clk 0:04:56.6]} 3. Nf3 {[%clk 0:04:57.5]} 3... Bg4 {[%clk
0:04:54.7]} 4. d4 {[%clk 0:04:55.4]} 4... Qxd5 {[%clk 0:04:53.2]} 5. Be2 {[%clk
0:04:54.1]} 5... Nc6 {[%clk 0:04:51.6]} 6. c4 {[%clk 0:04:52.4]} 6... Qf5 {[%clk
0:04:48.2]} 7. Be3 {[%clk 0:04:51.5]} 7... O-O-O {[%clk 0:04:47.2]} 8. Nbd2
{[%clk 0:04:49.4]} 8... e5 {[%clk 0:04:45.1]} 9. d5 {[%clk 0:04:46.6]} 9... Nb4
{[%clk 0:04:44]} 10. O-O {[%clk 0:04:34.4]} 10... Nc2 {[%clk 0:04:41.5]} 11. Rc1
{[%clk 0:04:18]} 11... Nxe3 {[%clk 0:04:40.4]} 12. fxe3 {[%clk 0:04:10.1]} 12...
Bc5 {[%clk 0:04:39.3]} 13. Qb3 {[%clk 0:03:56.9]} 13... Bxf3 {[%clk 0:03:01.7]}
14. Nxf3 {[%clk 0:03:27.7]} 14... e4 {[%clk 0:02:23.7]} 15. Nd4 {[%clk
0:03:12.1]} 15... Qg5 {[%clk 0:02:13.6]} 16. Nc2 {[%clk 0:02:58.3]} 16... h5
{[%clk 0:02:04]} 17. Qc3 {[%clk 0:02:46.6]} 17... Ng4 {[%clk 0:01:56.1]} 18.
Bxg4+ {[%clk 0:02:22.6]} 18... hxg4 {[%clk 0:01:50.1]} 19. b4 {[%clk 0:02:21.3]}
19... Bd6 {[%clk 0:01:44.7]} 20. g3 {[%clk 0:02:18.7]} 20... Qh5 {[%clk
0:01:31.8]} 21. Qd2 {[%clk 0:01:55.7]} 21... Bxg3 {[%clk 0:01:27.7]} 22. Rf2
{[%clk 0:01:34.8]} 22... Bxf2+ {[%clk 0:01:17.7]} 23. Qxf2 {[%clk 0:01:34.7]}
23... Rd6 {[%clk 0:01:14.8]} 24. Nd4 {[%clk 0:01:30.5]} 24... g3 {[%clk
0:01:06.1]} 25. Qf5+ {[%clk 0:01:17.9]} 25... Qxf5 {[%clk 0:01:03.4]} 26. Nxf5
{[%clk 0:01:17.8]} 26... gxh2+ {[%clk 0:01:01.5]} 27. Kh1 {[%clk 0:01:16.6]}
27... Rf6 {[%clk 0:00:54.6]} 28. Ng3 {[%clk 0:01:05.2]} 28... Rf3 {[%clk
0:00:48.3]} 29. Nxe4 {[%clk 0:01:03.1]} 29... Rxe3 {[%clk 0:00:46.3]} 30. Nc3
{[%clk 0:00:50.8]} 30... g5 {[%clk 0:00:39.4]} 31. c5 {[%clk 0:00:47.3]} 31...
g4 {[%clk 0:00:36.4]} 32. d6 {[%clk 0:00:43.4]} 32... c6 {[%clk 0:00:32]} 33. b5
{[%clk 0:00:41.2]} 33... g3 {[%clk 0:00:30]} 34. bxc6 {[%clk 0:00:39.3]} 34...
bxc6 {[%clk 0:00:29.3]} 35. d7+ {[%clk 0:00:19.1]} 35... Kxd7 {[%clk 0:00:27]}
36. Rd1+ {[%clk 0:00:18.3]} 36... Ke7 {[%clk 0:00:24.3]} 37. Nb1 {[%clk
0:00:17.3]} 37... Rh4 {[%clk 0:00:18.6]} 38. Nd2 {[%clk 0:00:15.8]} 38... Rf4
{[%clk 0:00:17]} 39. Kg2 {[%clk 0:00:13]} 39... Rf2+ {[%clk 0:00:15.5]} 40. Kh1
{[%clk 0:00:09.8]} 40... Rxd2 {[%clk 0:00:14.9]} 41. Rxd2 {[%clk 0:00:08.7]}
41... Re1+ {[%clk 0:00:14.3]} 42. Kg2 {[%clk 0:00:08.3]} 42... h1=Q+ {[%clk
0:00:13.1]} 43. Kxg3 {[%clk 0:00:08.2]} 43... Qg1+ {[%clk 0:00:09.6]} 44. Kf3
{[%clk 0:00:06.8]} 44... Re3+ {[%clk 0:00:08.3]} 45. Kf4 {[%clk 0:00:05.6]}
45... Qg3+ {[%clk 0:00:07.6]} 46. Kf5 {[%clk 0:00:04.8]} 46... Re5# {[%clk
0:00:07.1]} 0-1

[Event "Live Chess"]
[Site "Chess.com"]
[Date "2023.05.20"]
[Round "-"]
[White "mpersander"]
[Black "SavagePawn7"]
[Result "1-0"]
[WhiteElo "999"]
[BlackElo "792"]
[TimeControl "300"]
[EndTime "12:30:57 PDT"]
[Termination "mpersander won by resignation"]

1. e4 {[%clk 0:04:55.5]} 1... d5 {[%clk 0:04:57.5]} 2. exd5 {[%clk 0:04:54.1]}
2... Nf6 {[%clk 0:04:55.5]} 3. c4 {[%clk 0:04:46.9]} 3... e6 {[%clk 0:04:53.3]}
4. dxe6 {[%clk 0:04:45.2]} 4... Bxe6 {[%clk 0:04:51.8]} 5. d4 {[%clk 0:04:39.7]}
5... Bb4+ {[%clk 0:04:49.9]} 6. Bd2 {[%clk 0:04:36.1]} 6... Bxd2+ {[%clk
0:04:47.2]} 7. Qxd2 {[%clk 0:04:35.1]} 7... Qe7 {[%clk 0:04:36.9]} 8. d5 {[%clk
0:04:32.1]} 8... Bxd5+ {[%clk 0:04:28.9]} 9. Be2 {[%clk 0:04:12.3]} 9... Bxc4
{[%clk 0:04:24.2]} 10. Nf3 {[%clk 0:04:00.6]} 10... Bxe2 {[%clk 0:04:19.8]} 11.
Qxe2 {[%clk 0:03:58.8]} 11... Qxe2+ {[%clk 0:04:16.8]} 12. Kxe2 {[%clk
0:03:57.7]} 12... O-O {[%clk 0:04:14.5]} 13. Nc3 {[%clk 0:03:54.1]} 13... Re8+
{[%clk 0:04:13]} 14. Kd3 {[%clk 0:03:50.7]} 14... Nc6 {[%clk 0:04:10.9]} 15. Kc2
{[%clk 0:03:42.9]} 15... Rad8 {[%clk 0:04:07.3]} 16. Rad1 {[%clk 0:03:39.4]}
16... Rxd1 {[%clk 0:04:01.4]} 17. Rxd1 {[%clk 0:03:38.2]} 17... a6 {[%clk
0:03:35.2]} 18. Nd4 {[%clk 0:03:36.7]} 18... Nxd4+ {[%clk 0:03:32.7]} 19. Rxd4
{[%clk 0:03:35.1]} 19... c5 {[%clk 0:03:13.8]} 20. Rc4 {[%clk 0:03:32.3]} 20...
b6 {[%clk 0:03:04.9]} 21. f3 {[%clk 0:03:11.6]} 21... g6 {[%clk 0:03:01.9]} 22.
Ne4 {[%clk 0:03:06]} 22... Nxe4 {[%clk 0:02:59.7]} 23. Rxe4 {[%clk 0:03:04.8]}
23... Rxe4 {[%clk 0:02:57.8]} 24. fxe4 {[%clk 0:03:03.9]} 24... Kg7 {[%clk
0:02:52.1]} 25. Kd3 {[%clk 0:03:02.4]} 25... Kf6 {[%clk 0:02:50.4]} 26. g4
{[%clk 0:02:53.5]} 26... Ke5 {[%clk 0:02:45.6]} 27. h4 {[%clk 0:02:51.6]} 27...
f6 {[%clk 0:02:42.4]} 28. a3 {[%clk 0:02:48.5]} 28... f5 {[%clk 0:02:31.7]} 29.
exf5 {[%clk 0:02:40.9]} 29... gxf5 {[%clk 0:02:30.3]} 30. g5 {[%clk 0:02:39.9]}
30... f4 {[%clk 0:02:26.7]} 31. h5 {[%clk 0:02:37]} 31... Kf5 {[%clk 0:02:25.2]}
32. g6 {[%clk 0:02:35.7]} 32... hxg6 {[%clk 0:02:18.4]} 33. h6 {[%clk
0:02:34.6]} 33... f3 {[%clk 0:02:16]} 34. Ke3 {[%clk 0:02:30]} 34... Kg5 {[%clk
0:02:14.7]} 35. h7 {[%clk 0:02:27.9]} 35... f2 {[%clk 0:02:10.4]} 36. Kxf2
{[%clk 0:02:26.8]} 1-0

[Event "Live Chess"]
[Site "Chess.com"]
[Date "2023.05.20"]
[Round "-"]
[White "BillythekidFellowes"]
[Black "ChippyChill"]
[Result "1-0"]
[WhiteElo "2021"]
[BlackElo "422"]
[TimeControl "300"]
[EndTime "12:30:58 PDT"]
[Termination "BillythekidFellowes won by resignation"]

1. e4 {[%clk 0:04:55.4]} 1... d5 {[%clk 0:04:58.1]} 2. exd5 {[%clk 0:04:54]}
2... Qxd5 {[%clk 0:04:55.8]} 3. Nc3 {[%clk 0:04:53.5]} 3... Qe5+ {[%clk
0:04:54.7]} 4. Qe2 {[%clk 0:04:51.8]} 4... Qxe2+ {[%clk 0:04:53.6]} 5. Bxe2
{[%clk 0:04:51.7]} 5... Bf5 {[%clk 0:04:51.2]} 6. d4 {[%clk 0:04:51.6]} 6...
Bxc2 {[%clk 0:04:47.6]} 7. Bf4 {[%clk 0:04:51.2]} 7... Na6 {[%clk 0:04:42.3]} 8.
Bxa6 {[%clk 0:04:49.8]} 8... bxa6 {[%clk 0:04:40]} 9. Rc1 {[%clk 0:04:49.7]}
9... Bf5 {[%clk 0:04:24.2]} 10. Nd5 {[%clk 0:04:47.7]} 10... O-O-O {[%clk
0:04:17.8]} 11. Rxc7+ {[%clk 0:04:45.4]} 1-0

[Event "Live Chess"]
[Site "Chess.com"]
[Date "2023.05.20"]
[Round "-"]
[White "Bob2pen"]
[Black "MarkLim1"]
[Result "1/2-1/2"]
[WhiteElo "1782"]
[BlackElo "1680"]
[TimeControl "300"]
[EndTime "12:31:22 PDT"]
[Termination "Game drawn by stalemate"]

1. e4 {[%clk 0:04:55.9]} 1... e6 {[%clk 0:04:58.9]} 2. d4 {[%clk 0:04:54.7]}
2... d5 {[%clk 0:04:58.1]} 3. Nc3 {[%clk 0:04:54]} 3... Nf6 {[%clk 0:04:56.9]}
4. Bg5 {[%clk 0:04:52.1]} 4... dxe4 {[%clk 0:04:56]} 5. Nxe4 {[%clk 0:04:50.7]}
5... Nbd7 {[%clk 0:04:55.6]} 6. Nf3 {[%clk 0:04:47.4]} 6... h6 {[%clk
0:04:54.5]} 7. Bxf6 {[%clk 0:04:42.4]} 7... Nxf6 {[%clk 0:04:53.6]} 8. Ng3
{[%clk 0:04:41.4]} 8... c5 {[%clk 0:04:52.2]} 9. dxc5 {[%clk 0:04:38.3]} 9...
Qxd1+ {[%clk 0:04:50.8]} 10. Rxd1 {[%clk 0:04:37]} 10... Bxc5 {[%clk 0:04:50]}
11. Bb5+ {[%clk 0:04:34.9]} 11... Bd7 {[%clk 0:04:48.2]} 12. Bxd7+ {[%clk
0:04:32.1]} 12... Nxd7 {[%clk 0:04:47.2]} 13. O-O {[%clk 0:04:31.1]} 13... Ke7
{[%clk 0:04:46.4]} 14. c3 {[%clk 0:04:29.6]} 14... Rhd8 {[%clk 0:04:44.8]} 15.
Ne4 {[%clk 0:04:28.1]} 15... Bb6 {[%clk 0:04:43.6]} 16. Nfd2 {[%clk 0:04:20.5]}
16... Nf6 {[%clk 0:04:39.7]} 17. Nxf6 {[%clk 0:04:19]} 17... Kxf6 {[%clk
0:04:38]} 18. Nc4 {[%clk 0:04:16.6]} 18... Bc5 {[%clk 0:04:35.3]} 19. g3 {[%clk
0:04:05.1]} 19... b5 {[%clk 0:04:26.8]} 20. Ne3 {[%clk 0:03:57.8]} 20... Bxe3
{[%clk 0:04:24.8]} 21. fxe3+ {[%clk 0:03:56.8]} 21... Ke7 {[%clk 0:04:23.9]} 22.
Kf2 {[%clk 0:03:55.9]} 22... Rd6 {[%clk 0:04:22]} 23. Rxd6 {[%clk 0:03:54]}
23... Kxd6 {[%clk 0:04:21]} 24. Kf3 {[%clk 0:03:51.9]} 24... Rc8 {[%clk
0:04:18]} 25. Ke4 {[%clk 0:03:50.3]} 25... Rc4+ {[%clk 0:04:16.6]} 26. Kd3
{[%clk 0:03:47.5]} 26... f6 {[%clk 0:04:14.1]} 27. Rf4 {[%clk 0:03:44.8]} 27...
Rc5 {[%clk 0:04:09.4]} 28. Rd4+ {[%clk 0:03:38.7]} 28... Rd5 {[%clk 0:04:07.7]}
29. Ke4 {[%clk 0:03:33.1]} 29... Rxd4+ {[%clk 0:03:53.9]} 30. exd4 {[%clk
0:03:28.2]} 30... a5 {[%clk 0:03:53]} 31. b3 {[%clk 0:03:26.6]} 31... g5 {[%clk
0:03:45.9]} 32. c4 {[%clk 0:03:23.1]} 32... f5+ {[%clk 0:03:44.2]} 33. Ke3
{[%clk 0:03:19.5]} 33... bxc4 {[%clk 0:03:43.2]} 34. bxc4 {[%clk 0:03:18.1]}
34... h5 {[%clk 0:03:37.9]} 35. h4 {[%clk 0:03:08.9]} 35... gxh4 {[%clk
0:03:02.2]} 36. gxh4 {[%clk 0:03:07.1]} 36... e5 {[%clk 0:03:01.5]} 37. dxe5+
{[%clk 0:02:57.3]} 37... Kxe5 {[%clk 0:03:00.5]} 38. c5 {[%clk 0:02:56.4]} 38...
Kd5 {[%clk 0:02:59.3]} 39. Kf4 {[%clk 0:02:55.4]} 39... Kxc5 {[%clk 0:02:58.5]}
40. Kxf5 {[%clk 0:02:54.7]} 40... Kd5 {[%clk 0:02:47.4]} 41. Kg5 {[%clk
0:02:53.5]} 41... Ke5 {[%clk 0:02:46.7]} 42. Kxh5 {[%clk 0:02:52.7]} 42... Kf5
{[%clk 0:02:46]} 43. Kh6 {[%clk 0:02:51.6]} 43... Kf6 {[%clk 0:02:43.9]} 44. h5
{[%clk 0:02:49.9]} 44... Kf7 {[%clk 0:02:40.5]} 45. Kg5 {[%clk 0:02:47.9]} 45...
Kg7 {[%clk 0:02:39.5]} 46. Kf5 {[%clk 0:02:44.5]} 46... Kh6 {[%clk 0:02:38.8]}
47. Ke5 {[%clk 0:02:43.9]} 47... Kxh5 {[%clk 0:02:38]} 48. Kd5 {[%clk
0:02:43.4]} 48... Kg5 {[%clk 0:02:36.8]} 49. Kc5 {[%clk 0:02:42.6]} 49... Kf6
{[%clk 0:02:35.8]} 50. Kb5 {[%clk 0:02:41.8]} 50... Ke7 {[%clk 0:02:35.2]} 51.
Kxa5 {[%clk 0:02:41.1]} 51... Kd8 {[%clk 0:02:34.4]} 52. Kb6 {[%clk 0:02:40.3]}
52... Kc8 {[%clk 0:02:33.5]} 53. Ka7 {[%clk 0:02:39.5]} 53... Kc7 {[%clk
0:02:32.4]} 54. a4 {[%clk 0:02:38.5]} 54... Kc8 {[%clk 0:02:30.3]} 55. Ka8
{[%clk 0:02:34.8]} 55... Kc7 {[%clk 0:02:29.4]} 56. a5 {[%clk 0:02:34]} 56...
Kc8 {[%clk 0:02:28.5]} 57. a6 {[%clk 0:02:32.6]} 57... Kc7 {[%clk 0:02:27.6]}
58. a7 {[%clk 0:02:30.7]} 58... Kc8 {[%clk 0:02:26.8]} 1/2-1/2

[Event "Live Chess"]
[Site "Chess.com"]
[Date "2023.05.20"]
[Round "-"]
[White "smoggyrabbit"]
[Black "TobyQuaite"]
[Result "1-0"]
[WhiteElo "1661"]
[BlackElo "1684"]
[TimeControl "300"]
[EndTime "12:31:22 PDT"]
[Termination "smoggyrabbit won by resignation"]

1. d4 {[%clk 0:04:59.5]} 1... e6 {[%clk 0:04:58.1]} 2. Nf3 {[%clk 0:04:58]} 2...
Nf6 {[%clk 0:04:57.3]} 3. e3 {[%clk 0:04:57.1]} 3... c5 {[%clk 0:04:56.2]} 4.
Bd3 {[%clk 0:04:53.6]} 4... d5 {[%clk 0:04:53.8]} 5. b3 {[%clk 0:04:52.4]} 5...
Nc6 {[%clk 0:04:50.9]} 6. O-O {[%clk 0:04:50.3]} 6... Bd6 {[%clk 0:04:46.6]} 7.
Bb2 {[%clk 0:04:48.6]} 7... O-O {[%clk 0:04:44.8]} 8. Nbd2 {[%clk 0:04:40.1]}
8... Qc7 {[%clk 0:04:39]} 9. dxc5 {[%clk 0:04:37.3]} 9... Bxc5 {[%clk
0:04:38.9]} 10. Bxf6 {[%clk 0:04:35.9]} 10... gxf6 {[%clk 0:04:37.6]} 11. Nh4
{[%clk 0:04:32.6]} 11... Bd6 {[%clk 0:04:33.5]} 12. f4 {[%clk 0:04:17.6]} 12...
e5 {[%clk 0:04:29.1]} 13. Nf5 {[%clk 0:04:03.9]} 13... Bxf5 {[%clk 0:04:23.5]}
14. Bxf5 {[%clk 0:04:02.3]} 14... exf4 {[%clk 0:04:22.4]} 15. Qg4+ {[%clk
0:03:52.7]} 15... Kh8 {[%clk 0:04:16.5]} 16. Qh5 {[%clk 0:03:51.7]} 1-0